fUSD/lending_fUSD_20250209
["ID","MTS","AMOUNT","RATE_DAILY","PERIOD"]
[352364673,1739062243583,-448.81,0.00010273,2]
[352364675,1739062243593,-1674.29,0.00010273,2]
[352364676,1739062243602,-1326.43,0.00010273,2]
[352364677,1739062243612,-1550.19,0.00010273,2]
[352364679,1739062243621,-1202.61,0.00010273,2]
[352364680,1739062243631,-500.0,0.00010273,2]
[352364681,1739062243640,-500.0,0.00010273,2]
[352364683,1739062243650,-500.0,0.00010273,2]
[352364685,1739062243659,-3099.52,0.00010273,2]
[352364687,1739062243668,-1869.28,0.00010273,2]
[352364688,1739062243677,-500.0,0.00010273,2]
[352364689,1739062243687,-1855.95,0.00010273,2]
[352364690,1739062243696,-636.96,0.00010273,2]
[352364691,1739062243705,-500.0,0.00010273,2]
[352364692,1739062243716,-500.0,0.00010273,2]
[352364693,1739062243728,-2623.86,0.00010273,2]
[352364694,1739062243737,-500.0,0.00010273,2]
[352364695,1739062243746,-500.0,0.00010273,2]
[352364696,1739062243756,-500.0,0.00010273,2]
[352364697,1739062243765,-431.66243238,0.00010337,2]
[352364698,1739062243775,-1168.16033,0.0001037,2]
[352364699,1739062243784,-500.0,0.00010409,2]
[352364700,1739062243795,-500.0,0.00010409,2]
[352364701,1739062243804,-500.0,0.00010409,2]
[352364702,1739062243814,-500.0,0.00010409,2]
[352364703,1739062243823,-719.25,0.00010409,2]
[352364704,1739062243832,-866.2,0.00010409,2]
[352364705,1739062243841,-1187.02,0.00010409,2]
[352364706,1739062243850,-1371.28,0.00010409,2]
[352364707,1739062243860,-500.0,0.00010409,2]
[352364708,1739062243869,-1082.36,0.00010409,2]
[352364709,1739062243879,-281.54,0.00010409,2]
[352364710,1739062243890,-860.2,0.00010409,2]
[352364711,1739062243899,-1015.58,0.00010409,2]
[352364712,1739062243909,-1485.32,0.00010409,2]
[352364713,1739062243919,-1470.99,0.00010409,2]
[352364714,1739062243929,-500.0,0.00010409,2]
[352364715,1739062243938,-1118.38,0.00010409,2]
[352364716,1739062243948,-500.0,0.00010409,2]
[352364717,1739062243957,-540.83,0.00010409,2]
[352364718,1739062243967,-500.0,0.00010409,2]
[352364719,1739062243977,-500.0,0.00010409,2]
[352364720,1739062243986,-500.0,0.00010409,2]
[352364721,1739062243995,-500.0,0.00010409,2]
[352364722,1739062244004,-664.28,0.00010409,2]
[352364723,1739062244014,-670.81,0.00010409,2]
[352364724,1739062244023,-500.0,0.00010409,2]
[352364725,1739062244032,-811.12,0.00010409,2]
[352364726,1739062244041,-865.92,0.00010409,2]
[352364727,1739062244050,-599.69,0.00010409,2]
[352364728,1739062244059,-500.0,0.00010409,2]
[352364729,1739062244069,-547.91,0.00010409,2]
[352364730,1739062244078,-622.82,0.00010409,2]
[352364731,1739062244087,-500.0,0.00010409,2]
[352364732,1739062244097,-415.81699,0.0001041,2]
[352364733,1739062244105,-426.599344,0.0001041,2]
[352364734,1739062244115,-500.0,0.0001041,2]
[352364735,1739062244127,-500.0,0.0001041,2]
[352364736,1739062244136,-610.46,0.0001041,2]
[352364737,1739062244146,-303.04605506,0.0001041,2]
[352364738,1739062244155,-500.0,0.0001041,2]
[352364739,1739062244163,-533.96,0.0001041,2]
[352364740,1739062244173,-500.0,0.0001041,2]
[352364741,1739062244182,-500.0,0.0001041,2]
[352364742,1739062244191,-500.0,0.0001041,2]
[352364743,1739062244200,-500.0,0.0001041,2]
[352364744,1739062244210,-500.0,0.0001041,2]
[352364745,1739062244219,-500.0,0.0001041,2]
[352364746,1739062244229,-403.09859588,0.0001041,2]
[352364747,1739062244239,-500.0,0.0001041,2]
[352364748,1739062244248,-500.0,0.0001041,2]
[352364749,1739062244262,-500.0,0.0001041,2]
[352364750,1739062244272,-500.0,0.0001041,2]
[352364751,1739062244283,-500.0,0.0001041,2]
[352364752,1739062244294,-500.0,0.0001041,2]
[352364753,1739062244304,-485.46272742,0.0001041,2]
[352364754,1739062244315,-500.0,0.0001041,2]
[352364755,1739062244326,-696.04,0.0001041,2]
[352364756,1739062244336,-500.0,0.0001041,2]
[352364757,1739062244346,-500.0,0.0001041,2]
[352364758,1739062244355,-521.78,0.0001041,2]
[352364759,1739062244366,-500.0,0.0001041,2]
[352364760,1739062244378,-500.0,0.0001041,2]
[352364761,1739062244388,-500.0,0.0001041,2]
[352364762,1739062244398,-500.0,0.0001041,2]
[352364763,1739062244407,-500.0,0.0001041,2]
[352364764,1739062244417,-500.0,0.0001041,2]
[352364765,1739062244427,-500.0,0.0001041,2]
[352364766,1739062244436,-500.0,0.0001041,2]
[352364767,1739062244446,-500.0,0.0001041,2]
[352364768,1739062244456,-500.0,0.0001041,2]
[352364769,1739062244466,-500.0,0.0001041,2]
[352364770,1739062244477,-500.0,0.0001041,2]
[352364771,1739062244487,-500.0,0.0001041,2]
[352364772,1739062244497,-500.0,0.0001041,2]
[352364773,1739062244509,-582.32,0.0001041,2]
[352364774,1739062244518,-587.8,0.0001041,2]
[352364775,1739062244528,-500.0,0.0001041,2]
[352364776,1739062244538,-526.29,0.0001041,2]
[352364777,1739062244548,-500.0,0.0001041,2]
[352364778,1739062244557,-500.0,0.0001041,2]
[352364779,1739062244567,-500.0,0.0001041,2]
[352364780,1739062244577,-500.0,0.0001041,2]
[352364781,1739062244587,-500.0,0.0001041,2]
[352364782,1739062244598,-500.0,0.0001041,2]
[352364783,1739062244607,-1138.47,0.0001041,2]
[352364784,1739062244616,-500.0,0.0001041,2]
[352364785,1739062244628,-557.66,0.0001041,2]
[352364786,1739062244638,-500.0,0.0001041,2]
[352364787,1739062244647,-500.0,0.0001041,2]
[352364788,1739062244657,-500.0,0.0001041,2]
[352364789,1739062244668,-500.0,0.0001041,2]
[352364790,1739062244678,-500.0,0.0001041,2]
[352364791,1739062244688,-500.0,0.0001041,2]
[352364792,1739062244698,-500.0,0.0001041,2]
[352364793,1739062244707,-551.8,0.0001041,2]
[352364794,1739062244718,-500.0,0.0001041,2]
[352364795,1739062244730,-500.0,0.0001041,2]
[352364796,1739062244740,-500.0,0.0001041,2]
[352364797,1739062244749,-1339.18,0.0001041,2]
[352364798,1739062244759,-500.0,0.0001041,2]
[352364799,1739062244768,-500.0,0.0001041,2]
[352364800,1739062244778,-1105.61,0.0001041,2]
[352364801,1739062244787,-1464.15,0.0001041,2]
[352364802,1739062244800,-500.0,0.0001041,2]
[352364803,1739062244810,-1483.04,0.0001041,2]
[352364804,1739062244820,-646.36,0.0001041,2]
[352364805,1739062244830,-758.82,0.0001041,2]
[352364806,1739062244839,-982.12,0.0001041,2]
[352364807,1739062244848,-500.0,0.0001041,2]
[352364808,1739062244858,-500.0,0.0001041,2]
[352364809,1739062244868,-500.0,0.0001041,2]
[352364810,1739062244881,-505.2,0.0001041,2]
[352364811,1739062244891,-897.37,0.0001041,2]
[352364812,1739062244901,-563.12,0.0001041,2]
[352364813,1739062244911,-2123.12,0.0001041,2]
[352364814,1739062244920,-500.0,0.0001041,2]
[352364815,1739062244930,-726.99,0.0001041,2]
[352364816,1739062244940,-1989.94,0.0001041,2]
[352364817,1739062244949,-500.0,0.0001041,2]
[352364818,1739062244959,-500.0,0.0001041,2]
[352364819,1739062244969,-500.0,0.0001041,2]
[352364820,1739062244978,-1413.18,0.0001041,2]
[352364821,1739062244988,-513.69,0.0001041,2]
[352364822,1739062244998,-543.5,0.0001041,2]
[352364823,1739062245007,-776.12,0.0001041,2]
[352364824,1739062245017,-506.53,0.0001041,2]
[352364825,1739062245027,-1072.08,0.0001041,2]
[352364826,1739062245036,-657.66,0.0001041,2]
[352364827,1739062245046,-500.0,0.0001041,2]
[352364828,1739062245056,-588.67,0.0001041,2]
[352364829,1739062245066,-585.38,0.0001041,2]
[352364830,1739062245076,-810.91,0.0001041,2]
[352364831,1739062245086,-776.76,0.0001041,2]
[352364832,1739062245096,-1026.8,0.0001041,2]
[352364833,1739062245106,-500.0,0.0001041,2]
[352364834,1739062245116,-773.18,0.0001041,2]
[352364835,1739062245128,-500.0,0.0001041,2]
[352364836,1739062245138,-500.0,0.0001041,2]
[352364837,1739062245148,-1815.37,0.0001041,2]
[352364838,1739062245158,-1260.28,0.0001041,2]
[352364839,1739062245168,-500.0,0.0001041,2]
[352364840,1739062245178,-528.07,0.0001041,2]
[352364841,1739062245188,-1456.94,0.0001041,2]
[352364842,1739062245198,-500.0,0.0001041,2]
[352364843,1739062245208,-1873.18,0.0001041,2]
[352364844,1739062245218,-500.0,0.0001041,2]
[352364845,1739062245228,-504.53,0.0001041,2]
[352364846,1739062245238,-686.6,0.0001041,2]
[352364847,1739062245247,-1575.79,0.0001041,2]
[352364848,1739062245258,-500.0,0.0001041,2]
[352364849,1739062245268,-774.39,0.0001041,2]
[352364850,1739062245278,-1065.68,0.0001041,2]
[352364851,1739062245289,-577.42,0.0001041,2]
[352364852,1739062245299,-519.47,0.0001041,2]
[352364853,1739062245309,-635.30218208,0.0001041,2]
[352364854,1739062245319,-839.26,0.0001041,2]
[352364855,1739062245329,-748.39,0.0001041,2]
[352364856,1739062245339,-500.0,0.0001041,2]
[352364857,1739062245348,-535.50699642,0.0001041,2]
[352364858,1739062245359,-226.6708222,0.0001041,2]
[352364859,1739062245369,-1124.11,0.0001041,2]
[352364860,1739062245384,-840.11,0.0001041,2]
[352364861,1739062245393,-500.0,0.0001041,2]
[352364862,1739062245404,-1520.78,0.0001041,2]
[352364863,1739062245414,-640.86,0.0001041,2]
[352364864,1739062245424,-500.0,0.0001041,2]
[352364865,1739062245435,-1674.29,0.0001041,2]
[352364866,1739062245445,-1326.43,0.0001041,2]
[352364867,1739062245454,-1550.19,0.0001041,2]
[352364868,1739062245464,-152.010228,0.0001041,2]
[352364869,1739062245474,-1202.61,0.0001041,2]
[352364870,1739062245484,-500.0,0.0001041,2]
[352364871,1739062245495,-500.0,0.0001041,2]
[352364872,1739062245505,-500.0,0.0001041,2]
[352364873,1739062245515,-3099.52,0.0001041,2]
[352364874,1739062245526,-1869.28,0.0001041,2]
[352364875,1739062245538,-167.594376,0.0001041,2]
[352364876,1739062245549,-500.0,0.0001041,2]
[352364877,1739062245559,-1855.95,0.0001041,2]
[352364878,1739062245569,-636.96,0.0001041,2]
[352364879,1739062245578,-500.0,0.0001041,2]
[352364880,1739062245588,-500.0,0.0001041,2]
[352364881,1739062245598,-2623.86,0.0001041,2]
[352364882,1739062245609,-500.0,0.0001041,2]
[352364883,1739062245618,-500.0,0.0001041,2]
[352364884,1739062245631,-164.06,0.0001041,2]
[352364885,1739062245642,-431.66243238,0.00010435,2]
[352364886,1739062245652,-170.11,0.00010445,2]
[352364887,1739062245662,-695.3,0.00010448,2]
[352364888,1739062245672,-176.27,0.0001049,2]
[352364889,1739062245681,-307.91678054,0.00010521,2]
[352364890,1739062245691,-1000.0,0.00010521,2]
[352364891,1739062245702,-500.0,0.00010546,2]
[352364892,1739062245712,-500.0,0.00010546,2]
[352364893,1739062245726,-500.0,0.00010546,2]
[352364894,1739062245736,-500.0,0.00010546,2]
[352364895,1739062245746,-719.25,0.00010546,2]
[352364896,1739062245757,-866.2,0.00010546,2]
[352364897,1739062245768,-1187.02,0.00010546,2]
[352364898,1739062245779,-1371.28,0.00010546,2]
[352364899,1739062245789,-500.0,0.00010546,2]
[352364900,1739062245800,-1082.36,0.00010546,2]
[352364901,1739062245811,-860.2,0.00010546,2]
[352364902,1739062245822,-1015.58,0.00010546,2]
[352364903,1739062245832,-1485.32,0.00010546,2]
[352364904,1739062245841,-1470.99,0.00010546,2]
[352364905,1739062245852,-500.0,0.00010546,2]
[352364906,1739062245861,-1118.38,0.00010546,2]
[352364907,1739062245872,-540.83,0.00010546,2]
[352364908,1739062245884,-500.0,0.00010546,2]
[352364909,1739062245894,-500.0,0.00010546,2]
[352364910,1739062245904,-664.28,0.00010546,2]
[352364911,1739062245914,-670.81,0.00010546,2]
[352364912,1739062245925,-500.0,0.00010546,2]
[352364913,1739062245934,-811.12,0.00010546,2]
[352364914,1739062245944,-865.92,0.00010546,2]
[352364915,1739062245955,-500.0,0.00010546,2]
[352364916,1739062245964,-547.91,0.00010546,2]
[352364917,1739062245975,-622.82,0.00010546,2]
[352364918,1739062245985,-500.0,0.00010546,2]
[352364919,1739062245995,-415.81699,0.00010547,2]
[352364921,1739062246005,-426.599344,0.00010547,2]
[352364923,1739062246015,-500.0,0.00010547,2]
[352364925,1739062246026,-610.46,0.00010547,2]
[352364927,1739062246035,-500.0,0.00010547,2]
[352364928,1739062246046,-533.96,0.00010547,2]
[352364929,1739062246055,-500.0,0.00010547,2]
[352364930,1739062246065,-500.0,0.00010547,2]
[352364931,1739062246075,-500.0,0.00010547,2]
[352364932,1739062246085,-364.63,0.00010547,2]
[352364933,1739062246095,-500.0,0.00010547,2]
[352364934,1739062246105,-500.0,0.00010547,2]
[352364935,1739062246115,-500.0,0.00010547,2]
[352364936,1739062246124,-500.0,0.00010547,2]
[352364937,1739062246137,-500.0,0.00010547,2]
[352364938,1739062246147,-500.0,0.00010547,2]
[352364939,1739062246156,-500.0,0.00010547,2]
[352364940,1739062246166,-373.32934507,0.00010547,2]
[352364941,1739062246176,-696.04,0.00010547,2]
[352364942,1739062246186,-500.0,0.00010547,2]
[352364943,1739062246196,-435.62,0.00010547,2]
[352364944,1739062246206,-521.78,0.00010547,2]
[352364945,1739062246216,-301.64573231,0.00010547,2]
[352364946,1739062246226,-500.0,0.00010547,2]
[352364947,1739062246237,-500.0,0.00010547,2]
[352364948,1739062246254,-500.0,0.00010547,2]
[352364949,1739062246269,-500.0,0.00010547,2]
[352364950,1739062246278,-500.0,0.00010547,2]
[352364951,1739062246288,-475.64008483,0.00010547,2]
[352364952,1739062246299,-500.0,0.00010547,2]
[352364953,1739062246308,-500.0,0.00010547,2]
[352364954,1739062246318,-500.0,0.00010547,2]
[352364955,1739062246328,-646.15248657,0.00010547,2]
[352364956,1739062246339,-582.32,0.00010547,2]
[352364957,1739062246351,-587.8,0.00010547,2]
[352364958,1739062246361,-500.0,0.00010547,2]
[352364959,1739062246371,-526.29,0.00010547,2]
[352364960,1739062246382,-500.0,0.00010547,2]
[352364961,1739062246392,-500.0,0.00010547,2]
[352364962,1739062246403,-500.0,0.00010547,2]
[352364963,1739062246412,-500.0,0.00010547,2]
[352364964,1739062246422,-500.0,0.00010547,2]
[352364965,1739062246432,-500.0,0.00010547,2]
[352364966,1739062246442,-1138.47,0.00010547,2]
[352364967,1739062246451,-500.0,0.00010547,2]
[352364968,1739062246462,-557.66,0.00010547,2]
[352364969,1739062246471,-500.0,0.00010547,2]
[352364970,1739062246482,-340.57,0.00010547,2]
[352364971,1739062246492,-500.0,0.00010547,2]
[352364972,1739062246502,-500.0,0.00010547,2]
[352364973,1739062246512,-500.0,0.00010547,2]
[352364974,1739062246521,-500.0,0.00010547,2]
[352364975,1739062246531,-551.8,0.00010547,2]
[352364976,1739062246541,-500.0,0.00010547,2]
[352364977,1739062246551,-500.0,0.00010547,2]
[352364978,1739062246561,-500.0,0.00010547,2]
[352364979,1739062246571,-1339.18,0.00010547,2]
[352364980,1739062246581,-500.0,0.00010547,2]
[352364981,1739062246592,-500.0,0.00010547,2]
[352364982,1739062246602,-1105.61,0.00010547,2]
[352364983,1739062246612,-1464.15,0.00010547,2]
[352364984,1739062246623,-500.0,0.00010547,2]
[352364985,1739062246636,-1483.04,0.00010547,2]
[352364986,1739062246828,-646.36,0.00010547,2]
[352364987,1739062246870,-758.82,0.00010547,2]
[352364988,1739062246885,-982.12,0.00010547,2]
[352364989,1739062246894,-500.0,0.00010547,2]
[352364990,1739062246903,-500.0,0.00010547,2]
[352364991,1739062246912,-500.0,0.00010547,2]
[352364992,1739062246921,-505.2,0.00010547,2]
[352364993,1739062246931,-897.37,0.00010547,2]
[352364994,1739062246941,-563.12,0.00010547,2]
[352364995,1739062246951,-2123.12,0.00010547,2]
[352364996,1739062246960,-500.0,0.00010547,2]
[352364997,1739062246969,-726.99,0.00010547,2]
[352364998,1739062246978,-1989.94,0.00010547,2]
[352364999,1739062246988,-500.0,0.00010547,2]
[352365000,1739062246997,-500.0,0.00010547,2]
[352365001,1739062247006,-500.0,0.00010547,2]
[352365002,1739062247015,-1413.18,0.00010547,2]
[352365003,1739062247024,-513.69,0.00010547,2]
[352365004,1739062247034,-543.5,0.00010547,2]
[352365005,1739062247044,-776.12,0.00010547,2]
[352365006,1739062247053,-506.53,0.00010547,2]
[352365007,1739062247063,-1072.08,0.00010547,2]
[352365008,1739062247073,-657.66,0.00010547,2]
[352365009,1739062247083,-500.0,0.00010547,2]
[352365010,1739062247092,-588.67,0.00010547,2]
[352365011,1739062247102,-585.38,0.00010547,2]
[352365012,1739062247111,-810.91,0.00010547,2]
[352365013,1739062247120,-776.76,0.00010547,2]
[352365014,1739062247136,-1026.8,0.00010547,2]
[352365015,1739062247146,-500.0,0.00010547,2]
[352365016,1739062247156,-773.18,0.00010547,2]
[352365017,1739062247165,-500.0,0.00010547,2]
[352365018,1739062247177,-500.0,0.00010547,2]
[352365019,1739062247187,-1815.37,0.00010547,2]
[352365020,1739062247198,-1260.28,0.00010547,2]
[352365021,1739062247208,-500.0,0.00010547,2]
[352365022,1739062247218,-528.07,0.00010547,2]
[352365023,1739062247227,-1456.94,0.00010547,2]
[352365024,1739062247237,-500.0,0.00010547,2]
[352365025,1739062247247,-1873.18,0.00010547,2]
[352365026,1739062247258,-500.0,0.00010547,2]
[352365027,1739062247267,-504.53,0.00010547,2]
[352365028,1739062247277,-686.6,0.00010547,2]
[352365029,1739062247286,-1575.79,0.00010547,2]
[352365030,1739062247295,-500.0,0.00010547,2]
[352365031,1739062247304,-774.39,0.00010547,2]
[352365032,1739062247313,-1065.68,0.00010547,2]
[352365033,1739062247323,-577.42,0.00010547,2]
[352365034,1739062247332,-519.47,0.00010547,2]
[352365035,1739062247341,-839.26,0.00010547,2]
[352365036,1739062247350,-748.39,0.00010547,2]
[352365037,1739062247364,-500.0,0.00010547,2]
[352365038,1739062247381,-1124.11,0.00010547,2]
[352365039,1739062247391,-840.11,0.00010547,2]
[352365040,1739062247401,-500.0,0.00010547,2]
[352365041,1739062247412,-1520.78,0.00010547,2]
[352365042,1739062247423,-640.86,0.00010547,2]
[352365043,1739062247433,-500.0,0.00010547,2]
[352365044,1739062247447,-1674.29,0.00010547,2]
[352365045,1739062247460,-1326.43,0.00010547,2]
[352365046,1739062247470,-1550.19,0.00010547,2]
[352365047,1739062247479,-1202.61,0.00010547,2]
[352365048,1739062247489,-500.0,0.00010547,2]
[352365049,1739062247498,-500.0,0.00010547,2]
[352365050,1739062247507,-3099.52,0.00010547,2]
[352365051,1739062247517,-1869.28,0.00010547,2]
[352365052,1739062247527,-500.0,0.00010547,2]
[352365053,1739062247537,-1855.95,0.00010547,2]
[352365054,1739062247547,-636.96,0.00010547,2]
[352365055,1739062247557,-500.0,0.00010547,2]
[352365056,1739062247567,-500.0,0.00010547,2]
[352365057,1739062247577,-2623.86,0.00010547,2]
[352365058,1739062247587,-500.0,0.00010547,2]
[352365059,1739062247597,-849.0,0.00010566,2]
[352365060,1739062247607,-1000.0,0.00010602,2]
[352365061,1739062247616,-1168.16033,0.0001068,2]
[352365062,1739062247628,-545.51,0.00010683,2]
[352365063,1739062247639,-500.0,0.00010683,2]
[352365064,1739062247648,-500.0,0.00010683,2]
[352365065,1739062247659,-500.0,0.00010683,2]
[352365066,1739062247669,-500.0,0.00010683,2]
[352365067,1739062247678,-719.25,0.00010683,2]
[352365068,1739062247688,-866.2,0.00010683,2]
[352365069,1739062247698,-1187.02,0.00010683,2]
[352365070,1739062247708,-1371.28,0.00010683,2]
[352365071,1739062247720,-500.0,0.00010683,2]
[352365072,1739062247729,-1082.36,0.00010683,2]
[352365073,1739062247738,-860.2,0.00010683,2]
[352365074,1739062247749,-1015.58,0.00010683,2]
[352365075,1739062247759,-1485.32,0.00010683,2]
[352365076,1739062247768,-1470.99,0.00010683,2]
[352365077,1739062247780,-500.0,0.00010683,2]
[352365078,1739062247790,-1118.38,0.00010683,2]
[352365079,1739062247803,-540.83,0.00010683,2]
[352365080,1739062247813,-500.0,0.00010683,2]
[352365081,1739062247823,-500.0,0.00010683,2]
[352365082,1739062247833,-664.28,0.00010683,2]
[352365083,1739062247843,-670.81,0.00010683,2]
[352365084,1739062247853,-500.0,0.00010683,2]
[352365085,1739062247862,-811.12,0.00010683,2]
[352365086,1739062247872,-865.92,0.00010683,2]
[352365087,1739062247891,-500.0,0.00010683,2]
[352365088,1739062247900,-547.91,0.00010683,2]
[352365089,1739062247911,-622.82,0.00010683,2]
[352365090,1739062247920,-500.0,0.00010683,2]
[352365091,1739062247930,-415.81699,0.00010684,2]
[352365092,1739062247940,-426.599344,0.00010684,2]
[352365093,1739062247949,-500.0,0.00010684,2]
[352365094,1739062247959,-610.46,0.00010684,2]
[352365095,1739062247968,-500.0,0.00010684,2]
[352365096,1739062247979,-533.96,0.00010684,2]
[352365097,1739062247990,-500.0,0.00010684,2]
[352365098,1739062248000,-483.63684734,0.00010684,2]
[352365099,1739062248010,-500.0,0.00010684,2]
[352365100,1739062248020,-500.0,0.00010684,2]
[352365101,1739062248030,-500.0,0.00010684,2]
[352365102,1739062248041,-500.0,0.00010684,2]
[352365103,1739062248052,-253.70334328,0.00010684,2]
[352365104,1739062248061,-500.0,0.00010684,2]
[352365105,1739062248071,-696.04,0.00010684,2]
[352365106,1739062248081,-521.78,0.00010684,2]
[352365107,1739062248091,-500.0,0.00010684,2]
[352365108,1739062248101,-500.0,0.00010684,2]
[352365109,1739062248111,-500.0,0.00010684,2]
[352365110,1739062248121,-500.0,0.00010684,2]
[352365111,1739062248135,-500.0,0.00010684,2]
[352365112,1739062248145,-500.0,0.00010684,2]
[352365113,1739062248155,-500.0,0.00010684,2]
[352365114,1739062248166,-500.0,0.00010684,2]
[352365115,1739062248177,-582.32,0.00010684,2]
[352365116,1739062248187,-587.8,0.00010684,2]
[352365117,1739062248198,-500.0,0.00010684,2]
[352365118,1739062248209,-526.29,0.00010684,2]
[352365119,1739062248220,-500.0,0.00010684,2]
[352365120,1739062248230,-500.0,0.00010684,2]
[352365121,1739062248240,-500.0,0.00010684,2]
[352365122,1739062248250,-500.0,0.00010684,2]
[352365123,1739062248260,-500.0,0.00010684,2]
[352365124,1739062248271,-500.0,0.00010684,2]
[352365125,1739062248280,-1138.47,0.00010684,2]
[352365126,1739062248290,-500.0,0.00010684,2]
[352365127,1739062248301,-557.66,0.00010684,2]
[352365128,1739062248311,-500.0,0.00010684,2]
[352365129,1739062248321,-500.0,0.00010684,2]
[352365130,1739062248332,-500.0,0.00010684,2]
[352365131,1739062248342,-500.0,0.00010684,2]
[352365132,1739062248352,-500.0,0.00010684,2]
[352365133,1739062248362,-551.8,0.00010684,2]
[352365134,1739062248372,-500.0,0.00010684,2]
[352365135,1739062248390,-500.0,0.00010684,2]
[352365136,1739062248400,-500.0,0.00010684,2]
[352365137,1739062248410,-1339.18,0.00010684,2]
[352365138,1739062248420,-500.0,0.00010684,2]
[352365139,1739062248430,-500.0,0.00010684,2]
[352365140,1739062248441,-1105.61,0.00010684,2]
[352365141,1739062248452,-1464.15,0.00010684,2]
[352365142,1739062248463,-500.0,0.00010684,2]
[352365143,1739062248473,-1483.04,0.00010684,2]
[352365144,1739062248483,-646.36,0.00010684,2]
[352365145,1739062248494,-758.82,0.00010684,2]
[352365146,1739062248504,-982.12,0.00010684,2]
[352365147,1739062248514,-500.0,0.00010684,2]
[352365148,1739062248524,-500.0,0.00010684,2]
[352365149,1739062248535,-500.0,0.00010684,2]
[352365150,1739062248545,-505.2,0.00010684,2]
[352365151,1739062248555,-897.37,0.00010684,2]
[352365152,1739062248565,-563.12,0.00010684,2]
[352365153,1739062248575,-2123.12,0.00010684,2]
[352365154,1739062248585,-500.0,0.00010684,2]
[352365155,1739062248595,-726.99,0.00010684,2]
[352365156,1739062248604,-1989.94,0.00010684,2]
[352365157,1739062248614,-500.0,0.00010684,2]
[352365158,1739062248625,-500.0,0.00010684,2]
[352365159,1739062248637,-500.0,0.00010684,2]
[352365160,1739062248648,-1413.18,0.00010684,2]
[352365161,1739062248658,-513.69,0.00010684,2]
[352365162,1739062248668,-543.5,0.00010684,2]
[352365163,1739062248678,-776.12,0.00010684,2]
[352365164,1739062248689,-506.53,0.00010684,2]
[352365165,1739062248699,-1072.08,0.00010684,2]
[352365166,1739062248710,-500.0,0.00010684,2]
[352365167,1739062248721,-657.66,0.00010684,2]
[352365168,1739062248732,-588.67,0.00010684,2]
[352365169,1739062248741,-585.38,0.00010684,2]
[352365170,1739062248752,-810.91,0.00010684,2]
[352365171,1739062248763,-776.76,0.00010684,2]
[352365172,1739062248774,-1026.8,0.00010684,2]
[352365173,1739062248784,-500.0,0.00010684,2]
[352365174,1739062248795,-773.18,0.00010684,2]
[352365175,1739062248808,-500.0,0.00010684,2]
[352365176,1739062248819,-1815.37,0.00010684,2]
[352365177,1739062248829,-500.0,0.00010684,2]
[352365178,1739062248840,-1260.28,0.00010684,2]
[352365179,1739062248850,-500.0,0.00010684,2]
[352365180,1739062248860,-528.07,0.00010684,2]
[352365181,1739062248871,-1456.94,0.00010684,2]